Workbook

Sheet 公示
B1: 长沙矿冶研究院2025年硕士研究生招生复试结果公示
A2: 一志愿复试结果：
A3: 姓名 | B3: 考生编号 | C3: 性别 | D3: 籍贯 | E3: 出生年月 | F3: 本科毕业学校及专业 | G3: 毕业时间 | H3: 邮箱 | I3: 电话 | J3: 第一志愿 | K3: 专业 | L3: 政治 | M3: 英语 | N3: 数学 | O3: 专业 | P3: 总分 | Q3: 复试成绩 | R3: 英语口语 | S3: 英语笔试 | T3: 专业笔试 | U3: 复试分数 | V3: 总分 | W3: 思想政治考核 | X3: 录取情况
A4: 肖展航 | B4: 826035430400001 | C4: 男 | D4: 湖南邵阳 | E4: 2004.04.14 | F4: 中南大学无机非金属材料工程 | G4: 2024.06.20 | H4: 1565911827@qq.com | I4: 17373988812 | J4: 长沙矿冶研究院 | K4: 矿物加工工程 | L4: 58 | M4: 51 | N4: 103 | O4: 84 | P4: 296 | Q4: 85 | R4: 70 | S4: 75 | T4: 65 | U4: =Q4+R4+S4+T4 -> 295 | V4: =U4+P4 -> 591 | W4: 合格 | X4: 预录取
A5: 调试复试结果：
A6: 姓名 | B6: 考生编号 | C6: 性别 | D6: 籍贯 | E6: 出生年月 | F6: 本科毕业学校及专业 | G6: 毕业时间 | H6: 邮箱 | I6: 电话 | J6: 第一志愿高校及专业 | K6: 调剂申请专业 | L6: 政治 | M6: 英语 | N6: 数学 | O6: 专业 | P6: 总分 | Q6: 复试成绩 | R6: 英语口语 | S6: 英语笔试 | T6: 专业笔试 | U6: 复试分数 | V6: 总分 | W6: 思想政治考核 | X6: 录取情况
A7: 余钢杰 | B7: 104975400336557 | C7: 男 | D7: 湖南长沙 | E7: 2003.05.13 | F7: 天津理工大学 安全工程 | G7: 2025.06.25 | H7: 18974996125@163.com | I7: 18974996125 | J7: 武汉理工大学 安全科学与工程 | K7: 材料学 | L7: 56 | M7: 48 | N7: 88 | O7: 111 | P7: 303 | Q7: 90 | R7: 60 | S7: 75 | T7: 83 | U7: =Q7+R7+S7+T7 -> 308 | V7: =U7+P7 -> 611 | W7: 合格 | X7: 预录取
A8: 向梓荣 | B8: 105335432711983 | C8: 男 | D8: 湖南怀化 | E8: 2002.01.12 | F8: 山东大学自动化 | G8: 2023.06.30 | H8: 15717452949@163.com | I8: 15717452949 | J8: 中南大学 电子信息 | K8: 矿物加工工程 | L8: 61 | M8: 68 | N8: 124 | O8: 115 | P8: 368 | Q8: 88 | R8: 70 | S8: 60 | T8: 95 | U8: =Q8+R8+S8+T8 -> 313 | V8: =U8+P8 -> 681 | W8: 合格 | X8: 预录取
A9: 吴舒豪 | B9: 105365430604602 | C9: 男 | D9: 湖南益阳 | E9: 2003.06.14 | F9: 长沙理工大学 电气工程及其自动化 | G9: 2025.06.30 | H9: 2079416722@qq.com | I9: 19308460235 | J9: 长沙理工大学 电气工程 | K9: 矿物加工工程 | L9: 64 | M9: 70 | N9: 97 | O9: 68 | P9: 299 | Q9: 80 | R9: 70 | S9: 79 | T9: 84 | U9: =Q9+R9+S9+T9 -> 313 | V9: =U9+P9 -> 612 | W9: 合格 | X9: 预录取
A10: 刘祎喆 | B10: 106995130613892 | C10: 男 | D10: 河北保定 | E10: 2002.10.04 | F10: 中南大学 机械设计及其自动化 | G10: 2024.06.20 | H10: 1973250684@qq.com | I10: 15188963168 | J10: 西北工业大学 控制工程 | K10: 矿物加工工程 | L10: 57 | M10: 45 | N10: 91 | O10: 106 | P10: 299 | Q10: 85 | R10: 75 | S10: 65 | T10: 85 | U10: =Q10+R10+S10+T10 -> 310 | V10: =U10+P10 -> 609 | W10: 合格 | X10: 预录取
A11: 黄源延 | B11: 105335432505816 | C11: 男 | D11: 湖南郴州 | E11: 2001.08.13 | F11: 湖南城市学院 造价工程 | G11: 2023.06.15 | H11: 1213251891@qq.com | I11: 18774293147 | J11: 中南大学 矿物加工工程 | K11: 矿物加工工程 | L11: 64 | M11: 49 | N11: 105 | O11: 77 | P11: 295 | Q11: 65 | R11: 60 | S11: 60 | T11: 65 | U11: =Q11+R11+S11+T11 -> 250 | V11: =U11+P11 -> 545 | W11: 合格 | X11: 预录取
A12: 孙明金 | B12: 102905210511604 | C12: 男 | D12: 山东寿光 | E12: 2001.10.15 | F12: 中国矿业大学 机械工程 | G12: 2024.06.13 | H12: 2039925643@qq.com | I12: 18453651877 | J12: 中国矿业大学 机械 | K12: 采矿工程 | L12: 68 | M12: 67 | N12: 90 | O12: 116 | P12: 341 | Q12: 90 | R12: 70 | S12: 60 | T12: 95 | U12: =Q12+R12+S12+T12 -> 315 | V12: =U12+P12 -> 656 | W12: 合格 | X12: 预录取
A13: 刘懿豪 | B13: 105335432313982 | C13: 男 | D13: 湖南益阳 | E13: 2001.02.18 | F13: 华北电力大学 （保定）机械工程 | G13: 2024.06.01 | H13: 614863002@qq.com | I13: 15616797669 | J13: 中南大学 机械 | K13: 采矿工程 | L13: 66 | M13: 69 | N13: 103 | O13: 99 | P13: 337 | Q13: 85 | R13: 60 | S13: 68 | T13: 85 | U13: =Q13+R13+S13+T13 -> 298 | V13: =U13+P13 -> 635 | W13: 合格 | X13: 预录取
A14: 张宸睿 | B14: 100085210000922 | C14: 男 | D14: 陕西榆林 | E14: 2002.03.04 | F14: 北京科技大学 自动化 | G14: 2025.06.30 | H14: zcr2471994183@163.com | I14: 13636796985 | J14: 北京科技大学 控制工程 | K14: 采矿工程 | L14: 58 | M14: 50 | N14: 70 | O14: 100 | P14: 278 | Q14: 85 | R14: 75 | S14: 60 | T14: 84 | U14: =Q14+R14+S14+T14 -> 304 | V14: =U14+P14 -> 582 | W14: 合格 | X14: 预录取
A15: 盘海源 | B15: 105335450214373 | C15: 男 | D15: 广西桂林 | E15: 2002.11.12 | F15: 中南大学冶金工程 | G15: 2024.06.20 | H15: 3311470246@qq.com | I15: 13737342770 | J15: 中南大学 冶金工程 | K15: 有色金属冶金 | L15: 64 | M15: 48 | N15: 106 | O15: 125 | P15: 343 | Q15: 95 | R15: 70 | S15: 81 | T15: 90 | U15: =Q15+R15+S15+T15 -> 336 | V15: =U15+P15 -> 679 | W15: 合格 | X15: 预录取
A16: 王海鹏 | B16: 105325441109090 | C16: 男 | D16: 湖南长沙 | E16: 2002.09 | F16: 湖南大学 材料科学与工程 | G16: 2024.06.18 | H16: 2673298625@qq.com | I16: 13548664810 | J16: 湖南大学 材料与化工 | K16: 有色金属冶金 | L16: 57 | M16: 73 | N16: 111 | O16: 92 | P16: 333 | Q16: 85 | R16: 65 | S16: 70 | T16: 91 | U16: =Q16+R16+S16+T16 -> 311 | V16: =U16+P16 -> 644 | W16: 合格 | X16: 预录取
A17: 荣康杰 | B17: 105335431505793 | C17: 男 | D17: 湖南长沙 | E17: 2003.02.15 | F17: 贵州大学冶金工程 | G17: 2024.07.15 | H17: Rongkj0731@163.com | I17: 18684906283 | J17: 中南大学 冶金工程 | K17: 有色金属冶金 | L17: 61 | M17: 54 | N17: 66 | O17: 112 | P17: 293 | Q17: 85 | R17: 75 | S17: 70 | T17: 70 | U17: =Q17+R17+S17+T17 -> 300 | V17: =U17+P17 -> 593 | W17: 合格 | X17: 预录取
A18: 江阳 | B18: 106985613419218 | C18: 男 | D18: 陕西 | E18: 2002.10.29 | F18: 西安建筑科技大学 冶金工程 | G18: 2025.07.01 | H18: 1579880745@qq.com | I18: 18809147740 | J18: 西安交通大学 材料工程 | K18: 有色金属冶金 | L18: 60 | M18: 66 | N18: 86 | O18: 103 | P18: 315 | Q18: 80 | R18: 50 | S18: 69 | T18: 49 | U18: =Q18+R18+S18+T18 -> 248 | V18: =U18+P18 -> 563 | W18: 合格 | X18: 不录取
A19: 王圣达 | B19: 106985211709386 | C19: 男 | D19: 河南濮阳 | E19: 2002.02.07 | F19: 大连理工大学 能源化学工程 | G19: 2025.06.01 | H19: 13213480871@163.com | I19: 13213480871 | J19: 西安交通大学 化学工程 | K19: 材料学 | L19: 62 | M19: 61 | N19: 87 | O19: 111 | P19: 321 | Q19: 85 | R19: 60 | S19: 67 | T19: 64 | U19: =Q19+R19+S19+T19 -> 276 | V19: =U19+P19 -> 597 | W19: 合格 | X19: 放弃
A20: 范天辰 | B20: 105335210110278 | C20: 男 | D20: 广西桂林 | E20: 2002.09.14 | F20: 东北大学 矿物加工工程 | G20: 2025.07.31 | H20: Tianchen_Fan@163.com | I20: 13077683248 | J20: 中南大学 资源与环境 | K20: 矿物加工工程 | L20: 65 | M20: 68 | N20: 75 | O20: 103 | P20: 311 | Q20: 0 | R20: 0 | S20: 0 | T20: 0 | U20: =Q20+R20+S20+T20 -> 0 | V20: =U20+P20 -> 311 | W20: 合格 | X20: 不录取
A21: 江富军 | B21: 105335413205887 | C21: 男 | D21: 安徽蚌埠 | E21: 2003.03.12 | F21: 河南理工大学 矿物加工工程 | G21: 2025.07.01 | H21: 3076179680@qq.com | I21: 19556989907 | J21: 中南大学 矿业工程 | K21: 矿物加工工程 | L21: 62 | M21: 54 | N21: 103 | O21: 73 | P21: 292 | Q21: 0 | R21: 0 | S21: 0 | T21: 0 | U21: =Q21+R21+S21+T21 -> 0 | V21: =U21+P21 -> 292 | W21: 合格 | X21: 不录取
A22: 徐元欣 | B22: 100085210000857 | C22: 男 | D22: 宁夏贺兰 | E22: 2002.09.17 | F22: 北京科技大学 测控技术与仪器 | G22: 2025.07.14 | H22: 3131799103@qq.com | I22: 15595043932 | J22: 北京科技大学 仪器仪表工程 | K22: 矿物加工工程 | L22: 51 | M22: 45 | N22: 74 | O22: 129 | P22: 299 | Q22: 0 | R22: 0 | S22: 0 | T22: 0 | U22: =Q22+R22+S22+T22 -> 0 | V22: =U22+P22 -> 299 | W22: 合格 | X22: 不录取
